Cogmind - Beta 13 @@@ ROGUE MODE // 2024.05.18 @ 15:59:06 Player: Bace Troncons Result: Destroyed by PQ-L68(R) with Subdweller Laser Performance ------------- Evolutions (0) 0 Regions Visited (2) 400 Robots Destroyed (25) 125 Value Destroyed (530) 530 Prototype IDs (0) 0 Alien Tech Used (0) 0 Bonus (0) 0 TOTAL SCORE: 1055 Bonus ------- None Cogmind --------- Core Integrity 0/250 Matter 215/300 Energy 249/250 System Corruption 0% Temperature Cool (6) Movement Core (800) Ox15 Location -10/Subcaves Parts ------- > --- POWER (1) -------- Ion Engine > --- PROPULSION (2) --- (None) > --- UTILITY (2) ------ High-capacity Storage Unit > --- WEAPON (2) ------- Medium Laser Light Assault Rifle > --- INVENTORY (20) --- Ion Engine Aluminum Leg Aluminum Leg Terrain Scanner Hacking Suite Small Laser Datajack Hammer Scrap Shield Fragment (49) Scrap Shield Fragment (48) Peak State ------------ > --- POWER ------------ Light Nuclear Core > --- PROPULSION ------- Light Treads Light Treads > --- UTILITY ---------- High-capacity Storage Unit Power Shielding > --- WEAPON ----------- Light Assault Rifle Light Cannon > --- INVENTORY -------- Ion Engine Ion Engine Aluminum Leg Aluminum Leg Hacking Suite Medium Laser Small Laser Datajack Hammer [Rating: 10] Favorites ----------- Power Light Nuclear Core Engine Ion Engine Power Core Light Nuclear Core Propulsion Light Treads Treads Light Treads Utility Power Shielding Storage High-capacity Storage Unit Protection Power Shielding Weapon Light Assault Rifle Energy Gun Medium Laser Ballistic Gun Light Assault Rifle Ballistic Cannon Light Cannon Impact Weapon Hammer Build | -11 -10 -10 ------- Run | Yrd Mat Sub Slots Evolved . | . . . Power . | . . . Propulsion . | . . . Utility . | . . . Weapon . | . . . Parts Attached 22 | 6 10 6 Power 3 | 1 1 1 Engine 2 | 1 . 1 Core 1 | . 1 . Reactor . | . . . Propulsion 4 | 2 1 1 Treads 4 | 2 1 1 Leg . | . . . Wheel . | . . . Hover . | . . . Flight . | . . . Utility 3 | 1 2 . Device . | . . . Storage 2 | 1 1 . Processor . | . . . Hackware . | . . . Protection 1 | . 1 . Artifact . | . . . Weapon 12 | 2 6 4 Energy Gun 2 | 1 . 1 Energy Cannon . | . . . Ballistic Gun 6 | 1 3 2 Ballistic Cannon 2 | . 2 . Launcher . | . . . Special Weapon . | . . . Impact Weapon 2 | . 1 1 Slashing Weapon . | . . . Piercing Weapon . | . . . Special Melee Weapon . | . . . Unidentified Prototypes . | . . . Parts Lost 8 | . 1 7 Power 1 | . . 1 Propulsion 3 | . . 3 Utility 1 | . . 1 Weapon 3 | . 1 2 Highest Loss Streak 6 | . 1 6 To Critical Strikes 1 | . . 1 Average Slot Usage (%) 99 | . 99 96 Engine 5 | . 6 . Core 8 | . 7 13 Treads 27 | . 28 27 Storage 14 | . 14 14 Protection 13 | . 13 13 Ballistic Gun 15 | . 15 17 Ballistic Cannon 10 | . 11 7 Naked Turns . | . . . Heaviest Build 51 | 13 51 50 Greatest Support 40 | 40 40 40 Greatest Overweight (x) 1 | . 1 1 Average Overweight (x) . | . . 1 Largest Inventory Capacity 20 | 8 20 20 Average Capacity 19 | 6 19 20 Most Carried 13 | 4 12 13 Average Carried 9 | 2 9 12 Final Capacity 20 | 8 20 20 Final Carried 12 | 4 12 10 Class Distribution -------------------- 100% | Mutant Dominant Class ---------------- Mutant | -10/Materials Mutant | -10/Subcaves Resources | -11 -10 -10 ----------- Run | Yrd Mat Sub Matter Collected 623 | 198 353 72 Remotely . | . . . Salvage Created 838 | . 728 110 Parts 54 | . 46 8 Haulers Intercepted 2 | . 2 . Recyclers Shooed . | . . . Parts Field Recycled . | . . . Retrieved Matter . | . . . Parts Self-Destructed . | . . . Prevented . | . . . Kills | -11 -10 -10 ------- Run | Yrd Mat Sub Combat Hostiles Destroyed 17 | . 14 3 Guns 8 | . 5 3 Cannons 9 | . 9 . Classes Destroyed 8 | . 7 1 Worker 1 | . 1 . Hauler 2 | . 2 . Recycler 2 | . 2 . Operator 1 | . 1 . Watcher 2 | . 2 . Swarmer 6 | . 6 . Grunt 8 | . 8 . Subdweller 3 | . . 3 Best Kill Streak 6 | . 6 1 Combat Bots Only 2 | . 2 1 Max Kills in Single Turn 2 | . 2 1 Gunslinging . | . . . Exploded . | . . . Melee . | . . . Uniques/NPCs Destroyed . | . . . Combat | -11 -10 -10 -------- Run | Yrd Mat Sub Hostile Shots Fired 114 | . 67 47 Missed 32 | . 20 12 Damage Taken 1167 | . 451 716 Core 265 | . 66 199 Absorbed by Shields . | . . . Redirected to Shielding 41 | . 21 20 Core Remaining (%) 100 | 100 . . Volleys Fired 105 | . 66 39 Largest 2 | . 2 2 Hottest 70 | . 55 70 Shots Fired 186 | . 120 66 Gun 138 | . 87 51 Cannon 48 | . 33 15 Launcher . | . . . Special . | . . . Kinetic 184 | . 120 64 Thermal 2 | . . 2 Explosive . | . . . Electromagnetic . | . . . Robot Hit Streak 18 | . 16 18 Robot Miss Streak 4 | . 4 1 Penetration Max . | . . . Secondary Targets 1 | . 1 . Max Gunslinging Chain 1 | . 1 . Shots Hit Robots 104 | . 69 35 Core Hits 46 | . 37 9 Critical Kills 1 | . 1 . Critical Parts Destroyed . | . . . Critical Strikes 4 | . 3 1 Burn 1 | . . 1 Destroy 1 | . 1 . Blast 2 | . 2 . Melee Attacks 7 | . 3 4 Impact 7 | . 3 4 Slashing . | . . . Piercing . | . . . Sneak Attacks . | . . . Combat Hostiles . | . . . Follow-up Attacks . | . . . Damage Inflicted 1028 | . 771 257 Guns 631 | . 409 222 Cannons 397 | . 362 35 Explosions . | . . . Melee . | . . . Ramming . | . . . Kinetic 1004 | . 771 233 Thermal 24 | . . 24 Explosive . | . . . Electromagnetic . | . . . Impact . | . . . Slashing . | . . . Piercing . | . . . Highest Corruption . | . . . Average Corruption . | . . . Corruption Purged . | . . . Corruption Blocked . | . . . Overload Shots . | . . . Overflow Damage . | . . . Projectiles . | . . . Explosions . | . . . Melee . | . . . Knockbacks 7 | . 6 1 Impact . | . . . Kinetic 7 | . 6 1 Secondary . | . . . Self-Inflicted Damage . | . . . Shots . | . . . Rammed . | . . . Targets Rammed . | . . . Kicked . | . . . Crushed . | . . . Highest Temperature 73 | . 73 1 Average Temperature 19 | . 20 1 Received Heat Transfer 309 | . 159 150 Siege Activations . | . . . Robots Corrupted . | . . . Combat Hostiles . | . . . Parts Fried . | . . . Impact Corruptions . | . . . Robots Melted . | . . . Combat Hostiles . | . . . Parts Melted . | . . . Heat Transferred 148 | . . 148 Parts Sabotaged . | . . . Parts Stolen . | . . . Parts Stripped . | . . . Power Chain Reactions . | . . . Alert | -11 -10 -10 ------- Run | Yrd Mat Sub Peak Influence 250 | . 250 . Initial . | . . . Average 112 | . 116 . Maximum Alert Level 1 | . 1 . Low Security (%) 87 | 100 86 . Level 1 12 | . 13 . Level 2 . | . . . Level 3 . | . . . Level 4 . | . . . Level 5 . | . . . High Security . | . . . Max Security . | . . . Squads Dispatched 3 | . 3 . Investigation . | . . . Extermination . | . . . Reinforcement 3 | . 3 . Assault . | . . . Garrison . | . . . Intercept . | . . . Searches Triggered . | . . . Construction Impeded . | . . . Haulers Reinforced . | . . . Active Scanning Responses . | . . . Cargo Convoy Interrupts . | . . . Stealth | -11 -10 -10 --------- Run | Yrd Mat Sub Distress Signals 3 | . 3 . Communications Jammed . | . . . Distress Signals . | . . . Times Spotted 31 | . 27 4 Peak Tracking Total 4 | . 4 2 Tactical Retreats 2 | . 2 . Traps | -11 -10 -10 ------- Run | Yrd Mat Sub Traps Triggered . | . . . Indirectly . | . . . Trap Hack Attempts . | . . . Triggered . | . . . Disarmed . | . . . Reprogrammed . | . . . Reused . | . . . Traps Extracted . | . . . Installed . | . . . Triggered . | . . . Machines | -11 -10 -10 ---------- Run | Yrd Mat Sub Machines Disabled . | . . . Max in Single Turn . | . . . Machines Repaired . | . . . Machines Dismantled . | . . . Machines Sabotaged . | . . . Overloaded Fab Kills . | . . . Hacking | -11 -10 -10 --------- Run | Yrd Mat Sub Machines Accessed 4 | . 4 . Terminals 3 | . 3 . Fabricators . | . . . Repair Stations . | . . . Recycling Units 1 | . 1 . Scanalyzers . | . . . Garrison Access . | . . . Total Hacks 7 | . 7 . Successful 5 | . 5 . Failed 2 | . 2 . Catastrophic . | . . . Database Lockouts . | . . . Manual . | . . . Terminals 6 | . 6 . Fabricators . | . . . Repair Stations . | . . . Recycling Units 1 | . 1 . Scanalyzers . | . . . Garrison Access . | . . . Terminal Hacks 4 | . 4 . Surveillance Status 1 | . 1 . Transport Status 1 | . 1 . Hauler Manifests 1 | . 1 . Zone Layout 1 | . 1 . Fabricator Hacks . | . . . Repair Station Hacks . | . . . Recycling Unit Hacks 1 | . 1 . Retrieve Components 1 | . 1 . Scanalyzer . | . . . Garrison Access Hacks . | . . . Unauthorized Hacks . | . . . Terminals . | . . . Fabricators . | . . . Repair Stations . | . . . Recycling Units . | . . . Scanalyzers . | . . . Garrison Access . | . . . Data Cores Recovered . | . . . Used . | . . . Hacking Detections 1 | . 1 . Full Trace Events . | . . . Feedback Events . | . . . Feedback Blocked . | . . . Robot Schematics Acquired . | . . . Robots Built . | . . . Authchips . | . . . Time . | . . . Total Robot Build Rating . | . . . Part Schematics Acquired . | . . . Parts Built . | . . . Authchips . | . . . Time . | . . . Total Part Build Rating . | . . . Parts Repaired . | . . . Time . | . . . Parts Recycled . | . . . Recycled Matter . | . . . Retrieved Matter . | . . . Retrieved Components 3 | . 3 . Parts Scanalyzed . | . . . Part Schematics Acquired . | . . . Parts Damaged . | . . . Bothacking | -11 -10 -10 ------------ Run | Yrd Mat Sub Used RIF Installer . | . . . Robots Hacked . | . . . Non-combat . | . . . Combat . | . . . Robot Hacks Applied . | . . . Relay Couplers Released . | . . . Fabnet Peak Effective % . | . . . Robots Rewired . | . . . Allies Hacked . | . . . Hacks Repelled . | . . . Allies | -11 -10 -10 -------- Run | Yrd Mat Sub Total Allies . | . . . Largest Group . | . . . Highest-Rated Group . | . . . Highest-Rated Ally . | . . . Total Orders . | . . . Ally Attacks . | . . . Total Damage . | . . . Kills . | . . . Allies Corrupted . | . . . Allies Melted . | . . . Intel | -11 -10 -10 ------- Run | Yrd Mat Sub Robot Analysis Total . | . . . Derelict Logs Recovered . | . . . Drone Launches . | . . . Drone Recoveries . | . . . Exploration | -11 -10 -10 ------------- Run | Yrd Mat Sub Turns Passed 2364 | 68 1860 436 Spaces Moved 619 | 36 452 131 Core 1 | 1 . . Treads 618 | 35 452 131 Legs . | . . . Wheels . | . . . Hover . | . . . Flight . | . . . Fastest Speed 50 | 50 160 240 Average Speed 229 | 156 232 240 Slowest Speed 240 | 160 240 240 Overloaded Moves . | . . . Propulsion Burnouts . | . . . Robots Hopped . | . . . Cave-ins Triggered . | . . . Exploration Rate (%) 24 | 4 64 6 Regions Visited 2 Branch Regions 1 Pre-discovered Areas . | . . . Known Exits Taken . | . . . Unknown Exits Taken 2 | 1 1 . Scrap Searched . | . . . Spaces Dug 2 | . 2 . Terrain Destroyed 2 | . 2 . Melee 2 | . 2 . Projectile . | . . . AOE . | . . . Terrain Rammed . | . . . Walls Destroyed . | . . . Machines Disabled . | . . . Actions | -11 -10 -10 --------- Run | Yrd Mat Sub Total 1385 | 45 1150 190 Wait 621 | . 613 8 Move 617 | 35 451 131 Hop . | . . . Pick Up 11 | 4 5 2 Fast Attach 8 | 6 2 . Attach 5 | . 1 4 Detach 1 | . 1 . Swap 9 | . 7 2 Drop 1 | . 1 . Fire 105 | . 66 39 Melee 7 | . 3 4 Ram . | . . . Kick . | . . . Crush . | . . . Escape Stasis . | . . . Rewire . | . . . Trap . | . . . Miscellaneous . | . . . Route ------- -11/Scrapyard -10/Materials (discovered 3 exits: [*Mat] / [*Min] / [*Sub]) -10/Subcaves History --------- Turn | Location | Event 43 | -11/Scrapyard | Discovered new exit (range 16) 69 | -11/Scrapyard | Entered Materials 317 | -10/Materials | Build established: Mutant 366 | -10/Materials | Discovered new exit (range 8) 727 | -10/Materials | Discovered new exit (range 17) 1910 | -10/Materials | Discovered new exit (range 7) 1929 | -10/Materials | Entered Subcaves 1932 | -10/Subcaves | A swath of the cavern ceiling suddenly collapsed 2328 | -10/Subcaves | Core integrity fell below 50% 2349 | -10/Subcaves | Core integrity fell below 20% 2365 | -10/Subcaves | Destroyed by PQ-L68(R) with Subdweller Laser Last Messages --------------- 02164_ BQ-PKD(R) destroyed. 02167_ Acquired 26 matter. 02172_ Acquired Scrap Shield Fragment. 02177_ Subatomizers dissect the Sub. Optics. 02188_ VN-UXI(u) builds Twisted Machinery. 02225_ Subatomizers dissect the Sub. Optics. 02287_ Subatomizers dissect the Sub. Optics, destroying it. 02331_ Lgt. Treads destroyed. 02333_ Power Shielding destroyed. 02333_ Lgt. Nuclear Core destroyed. 02335_ Lgt. Assault Rifle destroyed. 02341_ Critical hit (Destroy). 02341_ Lgt. Treads destroyed. 02351_ D1-7FM(R) destroyed. 02354_ Subatomizers dissect the Sub. Machine Gun. 02354_ Lgt. Treads destroyed. 02364_ PQ-L68(R) suffers critical hit (Burn). Map ----- +----------------------------------------------------+ | ?????????????????????????????????????????????????? | | ?????????????????????????????????????????????????? | | ?????????????????????????????????????????????????? | | ?????????????????????????????????????????????????? | | ?????????????????????????????????????????????????? | | ?????????????????????????????????????????????????? | | ?????????????????????????????????????????????????? | | ?????????????????????????????????????????????????? | | ?????????????????????????????????????????????????? | | ?????????????????????????????????????????????????? | | ?????????????????????????????????????????????????? | | ?????????????????????????????????????????????????? | | ?????????????????????????????????????????????????? | | ?????????????????????????????????????????????????? | | ??????????????????????????????? ????????????????? | | ?????????????????????????????? ?????????????????? | | ?????????????????????????????? ? #?????????????? | | ????????????????????????????? " ""#?????????????? | | ????????????????????????####?" "" #??????????????? | | ????????????#####???????# #?""" "???????????????? | | ?????????####"#"#???????? ## " "????????????????? | | ?????????#"""""##???????? ""????????????????? | | ?????????####"##"#??????## "?????" ???????????? | | ???????###" "##??"??????? *= #???"?" #?????????? | | ???????#""#"##???"##????##%[ #?? "" #?????????? | | ???????#####"#??## #????#@!&#?? "??????????? | | ????????### ##?## #????## R#?? "???????????? | | ???????## #"#### ##????# ##" "????????????? | | ???????####"# # ##????# "#" #?????? ??????? | | ???????#"## #### #????# #"" ## ?????? | | ???????##"""### ##??### ?????? | | ???????#""#"#### ##?## #??????????? | | ???????# "#### ### " ##??????????? | | ???????## ## ##" "" # # #???????????? | | ???????## ! & " " "" ### #??????????? | | ??????## = "" """ ##??? #????????? | | ??????# ### """""" ###?????### ???????? | | ?????## ######"""""" ##??????????? ???????? | | ?????# # ## """ ###??????????? ???????? | | ?????# "" #????????????? ????????? | | ?????##### # ##??????????????????????? | | ????????# #### # #########???????????????????????? | | ????????###??#####???????????????????????????????? | | ?????????????????????????????????????????????????? | | ?????????????????????????????????????????????????? | | ?????????????????????????????????????????????????? | | ?????????????????????????????????????????????????? | | ?????????????????????????????????????????????????? | | ?????????????????????????????????????????????????? | | ?????????????????????????????????????????????????? | +----------------------------------------------------+ Best States ------------- Heat Dissipation 25 Energy Generation 14 Energy Capacity 250 Matter Stores 300 Matter Capacity 300 Sight Range 16 Terrain Scan Density 10 Power Shielding 33 Evasion (%) 40 Recoil Reduction 2 Item Schematics ----------------- None Robot Schematics ------------------ None Fabricated ------------ Nothing Alien Tech Used ----------------- None Achievements -------------- None Challenges ------------ None Game ------ Seed InsulationWeaponBeamcaster Manual? 0 Play Time 00:12:10 Cumulative 79.5 hours Start 2024.05.18 @ 15:48:10 End 2024.05.18 @ 15:59:06 Sessions 1 Manual Loads 0 Difficulty Rogue Special Mode None Game No. 123 Rogue 123 Adventurer 0 Explorer 0 Win Type - Total 1 Types 1/0/0/0/0/0/0/0/0 Lore% 39 Gallery% 43 Achievement% 32 Wizard Run 0 Options --------- Layout 1 ASCII 0 Keyboard 1 Movement Numpad Keybinds 0 Fullscreen 1 Font 24/Smallcaps Map View 50x35 Zoom Use 0% Tactical HUD 1 Map Filters NONE Filters NONE Steam 1 RUN: 9fb7809c-cd6b-408e-a9f8-1ada2389eab6